bitfinex-derivatives/quotes_BNBF0:USTF0_20250511
["timestamp","ask_amount","ask_price","bid_price","bid_amount"]
[1746978675584,0.26656658,652.74,651.84,0.25787054]
[1746978675786,0.26656658,652.74,651.85,1.19592438]
[1746978676284,0.26656658,652.74,651.86,0.25787054]
[1746978676481,0.30631154,652.93,651.87,1.19592438]
[1746978676685,0.26655637,652.73,651.87,1.19592438]
[1746978676882,0.26655637,652.73,651.88,0.25787054]
[1746978677185,0.26655637,652.73,651.89,1.19592438]
[1746978677586,0.26655637,652.73,651.9,0.25787054]
[1746978678086,0.26655637,652.73,651.91,1.19592438]
[1746978678483,0.26655637,652.73,651.92,0.25787054]
[1746978678785,0.26655637,652.73,651.93,1.19592438]
[1746978679081,0.26655637,652.73,651.94,0.25787054]
[1746978679584,0.26655637,652.73,651.95,1.19592438]
[1746978680085,0.26655637,652.73,651.96,0.25787054]
[1746978680686,0.26655637,652.73,651.97,1.19592438]
[1746978681287,0.26655637,652.73,651.98,0.25787054]
[1746978681984,0.26655637,652.73,651.99,1.19592438]
[1746978682392,0.30631154,652.93,652.0,0.25787054]
[1746978682694,0.26652575,652.72,652.01,1.19592438]
[1746978683089,0.26652575,652.72,652.02,0.25787054]
[1746978683291,0.26652575,652.72,652.03,1.19592438]
[1746978683489,0.26652575,652.72,652.04,0.25787054]
[1746978683689,0.26652575,652.72,652.05,1.19592438]
[1746978684197,0.26652575,652.72,652.06,0.25787054]
[1746978684898,0.26652575,652.72,652.07,1.19592438]
[1746978685297,0.26652575,652.72,652.08,0.25787054]
[1746978685497,0.30631154,652.93,652.08,0.25787054]
[1746978685799,0.26649921,652.79,652.08,0.25787054]
[1746978686799,0.26649921,652.79,652.09,1.19592438]
[1746978687397,0.26649921,652.79,652.1,0.25787054]
[1746978687596,0.26649921,652.79,652.11,1.19592438]
[1746978688099,0.26649921,652.79,652.12,0.25787054]
[1746978688500,0.30631154,652.93,652.12,0.25787054]
[1746978688900,0.30631154,652.93,652.13,1.19592438]
[1746978689303,0.30631154,652.93,652.14,0.25787054]
[1746978689899,0.26649105,652.79,652.15,1.19592438]
[1746978690202,0.26649105,652.79,652.16,0.25787054]
[1746978690700,0.26649105,652.79,652.17,1.19592438]
[1746978691101,0.26649105,652.79,652.18,0.25787054]
[1746978691399,0.30631154,652.93,652.18,0.25787054]
[1746978691601,0.30631154,652.93,652.19,1.19592438]
[1746978692101,0.30631154,652.93,652.2,0.25787054]
[1746978692301,0.30631154,652.93,652.21,1.19592438]
[1746978692701,0.26648289,652.79,652.21,1.19592438]
[1746978692904,0.26648289,652.79,652.22,0.25787054]
[1746978693804,0.26648289,652.79,651.59,0.25787054]
[1746978694005,0.26648289,652.79,651.6,1.50576686]
[1746978694203,0.26648289,652.79,651.61,0.30693206]
[1746978694403,0.26648289,652.79,651.62,0.25787054]
[1746978694703,0.26648289,652.79,651.63,1.50575273]
[1746978694904,0.26648289,652.79,651.64,0.30691793]
[1746978695100,0.26648289,652.79,651.65,0.25787054]
[1746978695304,0.26648289,652.79,651.66,0.30690851]
[1746978695505,0.26648289,652.79,651.66,0.56477905]
[1746978695699,0.26648289,652.79,651.67,0.25787054]
[1746978695905,0.26648289,652.79,651.67,1.45670063]
[1746978696104,0.26648289,652.79,651.68,0.25787054]
[1746978696405,0.26648289,652.79,651.69,1.45670063]
[1746978696700,0.26648289,652.79,651.7,0.25787054]
[1746978696905,0.26648289,652.79,651.71,1.19883009]
[1746978697104,0.26648289,652.79,651.72,0.25787054]
[1746978697304,0.30631154,652.93,651.72,0.25787054]
[1746978697505,0.30631154,652.93,651.73,0.25787054]
[1746978697801,0.26653085,652.81,651.74,1.45670063]
[1746978698001,0.30631154,652.93,651.75,0.25787054]
[1746978698306,0.30631154,652.93,651.75,0.56473666]
[1746978698602,0.30631154,652.93,651.76,1.19883009]
[1746978698805,0.57283504,652.9,651.76,1.45670063]
[1746978699207,0.57283504,652.9,651.77,0.25787054]
[1746978699406,0.57283504,652.9,651.78,1.19883009]
[1746978699909,0.57283504,652.9,651.79,1.45670063]
[1746978700103,0.57283504,652.9,651.79,1.19883009]
[1746978700301,0.30632562,652.9,651.8,1.19883009]
[1746978700501,0.30632562,652.9,651.8,1.45653534]
[1746978700807,0.30632562,652.9,651.81,1.19883009]
[1746978701007,0.30632562,652.9,651.81,1.45653534]
[1746978701203,0.30632562,652.9,651.82,0.30683317]
[1746978701404,0.30632562,652.9,651.83,1.19883009]
[1746978701603,0.30632562,652.9,651.84,0.30682376]
[1746978701805,0.30632562,652.9,651.84,0.56452901]
[1746978702003,0.30632562,652.9,651.85,0.25770525]
[1746978702205,0.30632562,652.9,651.86,1.50564443]
[1746978702808,0.30632562,652.9,651.87,1.45653534]
[1746978703006,0.30632562,652.9,651.88,0.25770525]
[1746978703608,0.30632562,652.9,651.89,1.19883009]
[1746978703907,0.30632562,652.9,651.9,1.50562561]
[1746978704108,0.30632562,652.9,651.91,0.25770525]
[1746978704910,0.30632562,652.9,651.92,1.19883009]
[1746978705212,0.30632562,652.9,651.93,0.25770525]
[1746978705408,0.30632562,652.9,651.94,1.19883009]
[1746978705704,0.30632562,652.9,651.95,1.45653534]
[1746978706005,0.30632562,652.9,651.96,0.25770525]
[1746978706607,0.30632562,652.9,651.97,1.19883009]
[1746978706910,0.30632562,652.9,651.98,1.19883009]
[1746978707112,0.30632562,652.9,651.98,1.45653534]
[1746978707407,0.30632562,652.9,651.99,0.25770525]
[1746978707611,0.30632562,652.9,652.0,1.19883009]
[1746978708213,0.30632562,652.9,652.01,1.45653534]
[1746978708412,0.30632562,652.9,652.02,0.25770525]
[1746978708610,0.30632562,652.9,652.03,1.19883009]
[1746978709107,0.30638662,652.77,652.02,0.25770525]
[1746978709412,0.30638662,652.77,650.85,0.96619065]
[1746978709607,0.26663295,652.76,651.18,0.30713474]
[1746978710012,0.26663295,652.76,651.19,1.19841425]
[1746978710212,0.26663295,652.76,651.19,1.45630451]
[1746978710413,0.26663295,652.76,651.2,0.25789026]
[1746978710713,0.26663295,652.76,651.22,0.30711587]
[1746978710913,0.26663295,652.76,651.23,1.19839839]
[1746978711211,0.26663295,652.76,651.25,0.30710172]
[1746978711712,0.26663295,652.76,651.26,0.25788071]
[1746978711912,0.26663295,652.76,651.27,1.19839839]
[1746978712212,0.26663295,652.76,651.28,0.30708758]
[1746978712412,0.30638662,652.77,651.29,1.19839839]
[1746978712614,0.26662274,652.75,651.3,0.30707815]
[1746978712913,0.26662274,652.75,651.31,0.25788071]
[1746978713214,0.26662274,652.75,651.32,1.76334782]
[1746978713413,0.26662274,652.75,651.33,0.307064]
[1746978713614,0.26662274,652.75,651.34,1.19839839]
[1746978713814,0.26662274,652.75,651.35,0.30705457]
[1746978714014,0.26662274,652.75,651.36,1.19839839]
[1746978714314,0.26662274,652.75,651.37,0.56492586]
[1746978714514,0.26662274,652.75,651.38,0.30704043]
[1746978714709,0.26662274,652.75,651.38,0.56492114]
[1746978715015,0.26662274,652.75,651.39,1.4562791]
[1746978715215,0.26662274,652.75,651.4,0.30703101]
[1746978715411,0.26662274,652.75,651.4,0.56491172]
[1746978715614,0.26662274,652.75,651.41,1.19839839]
[1746978715815,0.26662274,652.75,651.42,0.30702158]
[1746978716009,0.26662274,652.75,651.43,1.4562791]
[1746978716216,0.26662274,652.75,651.44,0.30701215]
[1746978716416,0.26662274,652.75,651.45,0.25788071]
[1746978716718,0.26662274,652.75,651.46,1.50540112]
[1746978716915,0.26662274,652.75,651.47,0.30699801]
[1746978717216,0.26662274,652.75,651.48,0.25788071]
[1746978717517,0.26662274,652.75,651.49,0.30698859]
[1746978717911,0.26662274,652.75,651.5,1.19839839]
[1746978718216,0.26662274,652.75,651.51,0.30697917]
[1746978718416,0.30638662,652.77,651.51,1.76325827]
[1746978718615,0.30638662,652.77,651.52,0.25788071]
[1746978718916,0.26657066,652.76,651.53,1.50536813]
[1746978719116,0.26657066,652.76,651.54,0.30696503]
[1746978719311,0.26657066,652.76,651.55,0.25788071]
[1746978719517,0.26657066,652.76,651.56,0.30695561]
[1746978720016,0.26657066,652.76,651.57,1.4562791]
[1746978720225,0.26657066,652.76,651.58,0.30694619]
[1746978720417,0.26657066,652.76,651.59,1.19839839]
[1746978720717,0.26657066,652.76,651.6,0.30693677]
[1746978720917,0.26657066,652.76,651.61,0.25788071]
[1746978721217,0.26657066,652.76,651.62,1.50532574]
[1746978721419,0.30638662,652.77,651.62,1.50532574]
[1746978721718,0.26655433,652.75,651.63,0.25788071]
[1746978722218,0.26655433,652.75,651.64,1.4562791]
[1746978722518,0.26655433,652.75,651.65,1.4562791]
[1746978722918,0.26655433,652.75,651.66,1.4562791]
[1746978723218,0.26655433,652.75,651.67,1.19839839]
[1746978723421,0.26655433,652.75,651.67,1.4562791]
[1746978723615,0.26655433,652.75,651.68,0.25788071]
[1746978723816,0.26655433,652.75,651.69,1.19839839]
[1746978724113,0.26655433,652.75,651.69,1.4562791]
[1746978724314,0.26655433,652.75,651.7,0.25788071]
[1746978724616,0.26655433,652.75,651.71,1.19839839]
[1746978725018,0.26655433,652.75,651.72,1.19839839]
[1746978725218,0.26655433,652.75,651.72,1.4562791]
[1746978725518,0.26655433,652.75,651.73,0.25788071]
[1746978725817,0.26655433,652.75,651.74,1.19839839]
[1746978726213,0.26655433,652.75,651.75,0.25788071]
[1746978726414,0.26655433,652.75,651.76,1.19839839]
[1746978727017,0.26655433,652.75,651.77,0.25788071]
[1746978727919,0.26655433,652.75,651.76,1.19839839]
[1746978728120,0.26655433,652.75,650.42,0.96619065]
[1746978728414,0.26655433,652.75,651.77,0.25797896]
[1746978728721,0.26655433,652.75,651.17,1.76356447]
[1746978728914,0.26655433,652.75,651.78,0.25797896]
[1746978729113,0.26655433,652.75,651.18,0.25797896]
[1746978729417,0.26655433,652.75,651.19,0.25797896]
[1746978729721,0.26655433,652.75,651.2,1.1982067]
[1746978730019,0.26655433,652.75,651.2,1.45618566]
[1746978730219,0.26655433,652.75,651.21,1.45618566]
[1746978730421,0.30638662,652.77,651.21,1.45618566]
[1746978730613,0.30638662,652.77,651.22,0.25797896]
[1746978730920,0.30638662,652.77,651.23,0.25797896]
[1746978731116,0.30638662,652.77,651.24,1.1982067]
[1746978731315,0.30638662,652.77,651.24,1.45618566]
[1746978731514,0.30638662,652.77,651.25,1.1982067]
[1746978731821,0.26667586,652.76,651.25,1.45618566]
[1746978732121,0.26667586,652.76,651.26,0.25797896]
[1746978732321,0.26667586,652.76,651.26,1.45618566]
[1746978732515,0.26667586,652.76,651.27,0.25797896]
[1746978732718,0.26667586,652.76,651.28,0.25797896]
[1746978733021,0.26667586,652.76,651.29,0.25797896]
[1746978733217,0.26667586,652.76,651.29,1.45618566]
[1746978733421,0.30638662,652.77,651.29,1.1982067]
[1746978733616,0.26667178,652.75,651.29,1.1982067]
[1746978733820,0.26667178,652.75,651.3,0.25799523]
[1746978734020,0.26667178,652.75,651.3,1.45620193]
[1746978734221,0.26667178,652.75,651.31,1.45620193]
[1746978734521,0.26667178,652.75,651.32,0.25799523]
[1746978735024,0.26667178,652.75,651.33,1.1982067]
[1746978735338,0.30640071,652.74,651.33,1.1982067]
[1746978735823,0.30640071,652.74,651.34,1.1982067]
[1746978736016,0.30640071,652.74,651.34,1.45620193]
[1746978736223,0.30640071,652.74,651.35,1.1982067]
[1746978736523,0.30640071,652.74,651.36,1.1982067]
[1746978736725,0.26666156,652.73,651.36,1.45620193]
[1746978737127,0.26666156,652.73,651.37,1.45620193]
[1746978737427,0.26666156,652.73,651.38,0.25799523]
[1746978737628,0.26666156,652.73,651.38,1.45620193]
[1746978737829,0.26666156,652.73,651.39,0.25799523]
[1746978738130,0.26666156,652.73,651.4,0.25799523]
[1746978738529,0.26666156,652.73,651.41,0.25799523]
[1746978738728,0.26666156,652.73,651.41,1.45620193]
[1746978739223,0.26666156,652.73,651.42,0.25799523]
[1746978739431,0.26666156,652.73,651.43,1.1982067]
[1746978739728,0.26666156,652.73,651.44,1.1982067]
[1746978739931,0.26666156,652.73,651.45,0.25799523]
[1746978740228,0.26666156,652.73,651.46,1.1982067]
[1746978740528,0.26666156,652.73,651.47,0.25799523]
[1746978741130,0.26666156,652.73,651.48,1.1982067]
[1746978741323,0.26666156,652.73,651.49,1.1982067]
[1746978741526,0.26666156,652.73,651.5,1.1982067]
[1746978741929,0.26666156,652.73,651.51,1.1982067]
[1746978742129,0.26666156,652.73,651.49,0.25799523]
[1746978742130,0.26666156,652.73,651.52,1.19705085]
[1746978742431,0.30640071,652.74,651.53,1.19705085]
[1746978742729,0.30640071,652.74,651.54,0.25799523]
[1746978742924,0.30640071,652.74,651.54,1.45504608]
[1746978743330,0.30640071,652.74,651.55,0.25799523]
[1746978743831,0.26668404,652.73,651.55,0.25799523]
[1746978744031,0.26668404,652.73,651.18,0.25799523]
[1746978744425,0.26668404,652.73,651.19,1.19743021]
[1746978744728,0.26668404,652.73,651.2,1.19743021]
[1746978744931,0.26668404,652.73,651.2,1.45542544]
[1746978745233,0.26668404,652.73,651.21,1.45542544]
[1746978745431,0.30640071,652.74,651.21,1.45542544]
[1746978745630,0.30640071,652.74,651.22,0.25799523]
[1746978746027,0.30640071,652.74,651.23,1.19743021]
[1746978746432,0.30640071,652.74,651.24,0.25799523]
[1746978746634,0.30640071,652.74,651.25,1.19743021]
[1746978746834,0.2666871,652.73,651.25,1.19743021]
[1746978747034,0.2666871,652.73,651.26,0.25799523]
[1746978747334,0.2666871,652.73,651.26,1.45542544]
[1746978747634,0.2666871,652.73,651.27,1.19743021]
[1746978747831,0.2666871,652.73,651.27,1.45542544]
[1746978748035,0.2666871,652.73,651.28,1.45542544]
[1746978748335,0.2666871,652.73,651.29,0.25799523]
[1746978748537,0.30640071,652.74,651.29,0.25799523]
[1746978748838,0.26670039,652.72,651.29,0.25799523]
[1746978749033,0.26670039,652.72,651.3,1.19743021]
[1746978749432,0.26670039,652.72,651.31,1.19743021]
[1746978749633,0.26670039,652.72,651.32,1.19743021]
[1746978749832,0.26670039,652.72,651.33,0.25799523]
[1746978750138,0.26670039,652.72,651.34,1.19743021]
[1746978750637,0.26670039,652.72,651.35,1.45542544]
[1746978751040,0.26670039,652.72,651.36,0.25799523]
[1746978751339,0.26670039,652.72,651.37,1.19743021]
[1746978751533,0.30640071,652.74,651.37,1.19743021]
[1746978751733,0.26670141,652.71,651.38,0.25799523]
[1746978752041,0.26670141,652.71,651.39,1.19743021]
[1746978752342,0.26670141,652.71,651.4,0.25799523]
[1746978753142,0.26670141,652.71,651.41,1.19743021]
[1746978753442,0.26670141,652.71,651.42,0.25799523]
[1746978753944,0.26670141,652.71,651.43,1.19743021]
[1746978754245,0.26670141,652.71,651.44,1.45542544]
[1746978754644,0.26670141,652.71,651.45,0.25799523]
[1746978755045,0.26670141,652.71,651.46,1.19743021]
[1746978755342,0.26670141,652.71,651.47,0.25799523]
[1746978755543,0.26670141,652.71,651.48,1.19743021]
[1746978756046,0.26670141,652.71,651.49,0.25799523]
[1746978756348,0.30641948,652.7,651.5,1.19743021]
[1746978756748,0.30641948,652.7,651.51,1.45542544]
[1746978757049,0.30641948,652.7,651.52,1.19743021]
[1746978757250,0.30641948,652.7,651.52,1.45542544]
[1746978757647,0.26666462,652.69,651.52,1.45542544]
[1746978757844,0.26666462,652.69,651.53,1.19743021]
[1746978758245,0.26666462,652.69,651.53,1.45542544]
[1746978758450,0.26666462,652.69,651.54,1.19743021]
[1746978758651,0.26666462,652.69,651.54,1.45542544]
[1746978758950,0.26666462,652.69,651.55,1.45542544]
[1746978759250,0.26666462,652.69,651.56,0.25799523]
[1746978759451,0.26666462,652.69,651.55,1.19743021]
[1746978759652,0.26666462,652.69,651.17,0.30713945]
[1746978759852,0.26666462,652.69,651.56,0.25807768]
[1746978760250,0.26666462,652.69,651.18,0.25807768]
[1746978760451,0.30641948,652.7,651.18,0.25807768]
[1746978760652,0.30641948,652.7,651.19,1.19647183]
[1746978760851,0.26672798,652.69,651.19,1.45454951]
[1746978761351,0.26672798,652.69,651.2,0.25807768]
[1746978761553,0.26672798,652.69,651.2,1.45454951]
[1746978761949,0.26672798,652.69,651.21,1.19647183]
[1746978762153,0.26672798,652.69,651.21,1.45454951]
[1746978762354,0.26672798,652.69,651.22,1.19647183]
[1746978762547,0.26672798,652.69,651.22,1.45454951]
[1746978762748,0.26672798,652.69,651.23,0.25807768]
[1746978763453,0.26672798,652.69,651.24,1.19647183]
[1746978764151,0.26672798,652.69,651.25,0.25807768]
[1746978764355,0.26672798,652.69,651.26,1.19647183]
[1746978764756,0.26672798,652.69,651.27,0.25807768]
[1746978765059,0.26672798,652.69,651.28,1.19647183]
[1746978765354,0.26672798,652.69,651.29,0.25807768]
[1746978765855,0.26672798,652.69,651.3,1.19647183]
[1746978766049,0.26672798,652.69,651.31,0.25807768]
[1746978766456,0.30641948,652.7,651.32,1.19647183]
[1746978766654,0.30641948,652.7,651.33,0.25807768]
[1746978766855,0.26675252,652.68,651.34,1.19647183]
[1746978767554,0.26675252,652.68,651.35,0.25807768]
[1746978768155,0.26675252,652.68,651.36,1.19647183]
[1746978768455,0.26675252,652.68,651.37,0.25807768]
[1746978769156,0.26675252,652.68,651.38,1.19647183]
[1746978769657,0.30643826,652.66,651.39,0.25807768]
[1746978769860,0.30643826,652.66,651.4,1.19647183]
[1746978770461,0.30643826,652.66,651.41,0.25807768]
[1746978771054,0.30643826,652.66,651.17,0.25807768]
[1746978771258,0.30643826,652.66,651.18,1.20169464]
[1746978771559,0.30643826,652.66,651.17,0.25807768]
[1746978771560,0.30643826,652.66,651.19,1.20169464]
[1746978771759,0.30643826,652.66,651.19,1.45977232]
[1746978772157,0.30643826,652.66,651.2,0.25807768]
[1746978772359,0.30643826,652.66,651.21,1.20169464]
[1746978772754,0.26675865,652.65,651.22,0.25807768]
[1746978772959,0.30645235,652.63,651.22,0.25807768]
[1746978773662,0.30645235,652.63,651.23,1.20169464]
[1746978773961,0.30645235,652.63,651.24,0.25807768]
[1746978774362,0.30645235,652.63,651.25,1.20169464]
[1746978774862,0.30645235,652.63,651.26,0.25807768]
[1746978775162,0.30645235,652.63,651.27,1.20169464]
[1746978775362,0.30645235,652.63,651.28,1.20169464]
[1746978775565,0.30645235,652.63,651.28,1.45977232]
[1746978775862,0.30645235,652.63,651.29,1.20169464]
[1746978776057,0.30645235,652.63,651.29,1.45977232]
[1746978776260,0.30645235,652.63,651.3,1.20169464]
[1746978776560,0.30645235,652.63,651.3,1.45977232]
[1746978776863,0.30645235,652.63,651.31,1.20169464]
[1746978777062,0.30645235,652.63,651.31,1.45977232]
[1746978777258,0.30645235,652.63,651.32,1.20169464]
[1746978777461,0.30645235,652.63,651.32,1.45977232]
[1746978777758,0.30645235,652.63,651.33,1.45977232]
[1746978778261,0.30645235,652.63,651.34,1.45977232]
[1746978778659,0.26672696,652.62,651.35,1.45977232]
[1746978778859,0.30646644,652.6,651.35,1.45977232]
[1746978779064,0.30646644,652.6,651.36,0.25807768]
[1746978779564,0.30646644,652.6,651.37,1.20169464]
[1746978780164,0.30646644,652.6,651.38,0.25807768]
[1746978780861,0.30646644,652.6,651.39,1.20169464]
[1746978781166,0.30646644,652.6,651.4,0.25807768]
[1746978781467,0.30646644,652.6,651.41,1.20169464]
[1746978781766,0.26674638,652.59,651.41,1.20169464]
[1746978781962,0.30648053,652.57,651.42,0.25807768]
[1746978782567,0.30648053,652.57,650.66,0.26674536]
[1746978782970,0.30648053,652.57,651.17,1.46307185]
[1746978783369,0.30648053,652.57,651.18,0.25812118]
[1746978783571,0.30648053,652.57,651.19,1.20495067]
[1746978783970,0.30648053,652.57,651.2,0.25812118]
[1746978784269,0.30648053,652.57,651.21,1.20495067]
[1746978784770,0.30648053,652.57,651.22,0.25812118]
[1746978784971,0.30648053,652.57,651.23,1.20495067]
[1746978785470,0.30648053,652.57,651.24,0.25812118]
[1746978786065,0.30648053,652.57,651.25,1.20495067]
[1746978786269,0.30648053,652.57,651.26,0.25812118]
[1746978786470,0.30648053,652.57,651.27,1.20495067]
[1746978786768,0.30648053,652.57,651.28,0.25812118]
[1746978786971,0.30648053,652.57,651.29,1.20495067]
[1746978787173,0.30648053,652.57,651.3,0.25812118]
[1746978787776,0.26675865,652.56,651.3,0.25812118]
[1746978787972,0.26675865,652.56,651.31,1.20495067]
[1746978788274,0.26675865,652.56,651.32,0.25812118]
[1746978788578,0.30649462,652.54,651.33,1.20495067]
[1746978789076,0.30649462,652.54,651.34,0.25812118]
[1746978789477,0.30649462,652.54,651.35,1.20495067]
[1746978789974,0.30649462,652.54,651.36,0.25809924]
[1746978790678,0.26674229,652.53,651.37,1.20495067]
[1746978790878,0.30650401,652.52,651.38,0.25809924]
[1746978791178,0.30650401,652.52,651.39,0.25809924]
[1746978791378,0.30650401,652.52,651.4,1.20495067]
[1746978791578,0.30650401,652.52,651.4,1.46304991]
[1746978792081,0.30650401,652.52,651.41,1.46304991]
[1746978792281,0.30650401,652.52,651.41,1.20495067]
[1746978792580,0.30650401,652.52,651.42,0.2580296]
[1746978792880,0.30650401,652.52,651.43,0.2580296]
[1746978793281,0.30650401,652.52,651.44,1.20495067]
[1746978793481,0.30650401,652.52,651.44,1.46298027]
[1746978793882,0.30650401,652.52,651.45,1.20495067]
[1746978794881,0.26670141,652.51,651.45,1.20495067]
[1746978795082,0.26670141,652.51,651.45,1.46298027]
[1746978795386,0.26670141,652.51,651.46,1.46298027]
[1746978796184,0.26670141,652.51,651.47,0.2580296]
[1746978796385,0.26670141,652.51,651.48,1.20495067]
[1746978796883,0.26670141,652.51,651.49,0.2580296]
[1746978797286,0.26670141,652.51,651.5,1.20495067]
[1746978797590,0.26670141,652.51,651.51,0.2580296]
[1746978797987,0.26670141,652.51,651.52,1.20495067]
[1746978798287,0.26670141,652.51,651.53,0.2580296]
[1746978798590,0.26670141,652.51,651.54,1.20495067]
[1746978798891,0.26670141,652.51,651.55,0.2580296]
[1746978799390,0.30650401,652.52,651.56,1.20495067]
[1746978799688,0.26666564,652.5,651.56,1.20495067]
[1746978799991,0.26666564,652.5,651.57,0.2580296]
[1746978800489,0.26666564,652.5,651.58,1.20495067]
[1746978800791,0.26666564,652.5,651.59,0.2580296]
[1746978801592,0.26666564,652.5,651.6,1.20495067]
[1746978802091,0.26666564,652.5,651.61,0.2580296]
[1746978802492,0.30650401,652.52,651.61,0.2580296]
[1746978802987,0.26665951,652.49,651.61,0.2580296]
[1746978803187,0.26665951,652.49,651.62,1.20495067]
[1746978803687,0.26665951,652.49,651.63,0.2580296]
[1746978804193,0.26665951,652.49,651.64,1.20495067]
[1746978804592,0.26665951,652.49,651.65,0.2580296]
[1746978805093,0.26665951,652.49,651.66,1.20495067]
[1746978805388,0.26665951,652.49,651.67,0.2580296]
[1746978805593,0.30650401,652.52,651.67,0.2580296]
[1746978805795,0.26666769,652.48,651.68,1.20495067]
[1746978806088,0.26666769,652.48,651.69,0.2580296]
[1746978806487,0.26666769,652.48,651.7,1.20582023]
[1746978806793,0.26666769,652.48,651.71,1.20582023]
[1746978806993,0.26666769,652.48,651.71,1.46384983]
[1746978807294,0.26666769,652.48,651.71,1.20582023]
[1746978807494,0.26666769,652.48,651.72,1.20582023]
[1746978807694,0.26666769,652.48,651.72,1.46382836]
[1746978807893,0.26666769,652.48,651.72,0.25800813]
[1746978808092,0.26666769,652.48,651.73,0.25800813]
[1746978808394,0.30650401,652.52,651.17,0.25800813]
[1746978808795,0.26672492,652.47,651.18,0.25800813]
[1746978809097,0.26672492,652.47,651.19,0.25800813]
[1746978809390,0.26672492,652.47,651.2,0.25800813]
[1746978809694,0.26672492,652.47,651.21,1.20565262]
[1746978809891,0.26672492,652.47,651.21,1.46366075]
[1746978810091,0.26672492,652.47,651.22,1.20565262]
[1746978810290,0.26672492,652.47,651.23,1.20565262]
[1746978810495,0.26672492,652.47,651.24,0.25800813]
[1746978810797,0.26672492,652.47,651.24,1.46366075]
[1746978810991,0.26672492,652.47,651.25,1.46366075]
[1746978811193,0.26672492,652.47,651.26,1.20565262]
[1746978811393,0.26672492,652.47,651.27,1.20565262]
[1746978811593,0.30650401,652.52,651.28,1.46366075]
[1746978811788,0.26670141,652.46,651.28,1.46366075]
[1746978811994,0.26670141,652.46,651.29,1.46366075]
[1746978812497,0.26670141,652.46,651.3,1.20565262]
[1746978812695,0.26670141,652.46,651.31,1.20565262]
[1746978812995,0.26670141,652.46,651.32,1.46366075]
[1746978813299,0.26670141,652.46,651.33,0.25800813]
[1746978813493,0.26670141,652.46,651.33,1.46366075]
[1746978813690,0.26670141,652.46,651.34,1.20565262]
[1746978814096,0.26670141,652.46,651.35,1.46366075]
[1746978814493,0.30650401,652.52,651.36,1.46366075]
[1746978814896,0.30650401,652.52,651.37,0.25800813]
[1746978815094,0.30650401,652.52,651.38,1.20565262]
[1746978815691,0.2667515,652.51,651.39,0.25800813]
[1746978815897,0.2667515,652.51,651.4,1.20565262]
[1746978816096,0.2667515,652.51,651.41,0.25800813]
[1746978816290,0.2667515,652.51,651.42,1.20565262]
[1746978816691,0.2667515,652.51,651.43,0.25800813]
[1746978817500,0.30650401,652.52,651.17,0.25800813]
[1746978817691,0.26678831,652.5,651.17,0.25800813]
[1746978817895,0.26678831,652.5,651.18,1.20585774]
[1746978818500,0.26678831,652.5,651.19,1.20585774]
[1746978818800,0.26678831,652.5,651.2,0.25800813]
[1746978819094,0.26678831,652.5,651.21,1.20585774]
[1746978819500,0.26678831,652.5,651.22,0.25800813]
[1746978819700,0.26678831,652.5,651.23,1.20585774]
[1746978820196,0.26678831,652.5,651.24,0.25800813]
[1746978820495,0.28175668,652.49,651.24,0.25800813]
[1746978820900,0.26678831,652.5,651.24,0.25800813]
[1746978821202,0.26678831,652.5,651.17,0.25800813]
[1746978822196,0.26678831,652.5,651.18,1.20521559]
[1746978822501,0.26678831,652.5,651.19,0.25800813]
[1746978822803,0.26678831,652.5,651.2,1.20521559]
[1746978823203,0.26678831,652.5,651.21,1.46322372]
[1746978823405,0.30650401,652.52,651.21,1.46322372]
[1746978823603,0.30650401,652.52,651.22,0.25800813]
[1746978823800,0.26678728,652.49,651.22,0.25800813]
[1746978824000,0.26678728,652.49,651.23,1.20521559]
[1746978824500,0.26678728,652.49,651.24,0.25800813]
[1746978824697,0.26678728,652.49,651.24,1.46322372]
[1746978825105,0.26678728,652.49,651.25,1.20521559]
[1746978825306,0.26678728,652.49,651.26,0.25800813]
[1746978825704,0.26678728,652.49,651.27,1.20521559]
[1746978826105,0.26678728,652.49,651.28,1.46322372]
[1746978826405,0.26678728,652.49,651.29,0.25800813]
[1746978826603,0.30650401,652.52,651.29,0.25800813]
[1746978826803,0.26678422,652.48,651.3,1.20521559]
[1746978827103,0.26678422,652.48,651.31,0.25800813]
[1746978827304,0.26678422,652.48,651.17,0.25800813]
[1746978827707,0.26678422,652.48,651.18,1.2026841]
[1746978828007,0.26678422,652.48,651.19,0.25800813]
[1746978828207,0.26678422,652.48,651.2,1.2026841]
[1746978828608,0.26678422,652.48,651.21,1.2026841]
[1746978828808,0.26678422,652.48,651.21,1.46069223]
[1746978829008,0.26678422,652.48,651.22,0.25800813]
[1746978829210,0.26678422,652.48,651.23,1.2026841]
[1746978829408,0.30650401,652.52,651.23,1.2026841]
[1746978829608,0.30650401,652.52,651.24,0.25800813]
[1746978829812,0.26680569,652.47,651.24,0.25800813]
[1746978830112,0.26680569,652.47,651.25,1.2026841]
[1746978830614,0.26680569,652.47,651.26,0.25800813]
[1746978831613,0.26680569,652.47,650.4,0.26683331]
[1746978831914,0.26680569,652.47,651.17,0.25821396]
[1746978832210,0.26680569,652.47,651.18,1.20313741]
[1746978832516,0.30650401,652.52,651.18,1.20313741]
[1746978832817,0.26683126,652.46,651.19,0.25821396]
[1746978833615,0.26683126,652.46,651.2,1.20321555]
[1746978834115,0.26683126,652.46,651.21,0.25821396]